Workbook

Sheet Rozpočet_digitalizace
A1: Instrukce: | B1: Editujte pouze zelená pole. Struktura kategorií a podkategorií nákladů odpovídá struktuře nákladů uvedené v Pravidlech pro žadatele, kap. C.4. U nákladových celků, které nemají samostatný rozpočet doložitelný jako zvláštní přílohu (např. výkaz výměr), vytvořte a položkově rozepište (pod)kategorie na nově vytvořených listech tohoto Excelu dle příkladu listu "X.vzor / 6.Služby". V případě kategorií, které se nerozpadají na (pod)kategorie nebo položky, ale jsou vykazovány za více partnerů, postupujte stejně. Na tomto listu nepřidávejte nové řádky. V případě úspěšné žádosti bude tabulka doplněna o sloupce, kdy příjemce bude ke každé ŽoP přikládat tento Excel s vyznačením čerpání pro každou položku. Excel vkládejte do MS2021+ zazipovaný, jelikož nepodporuje soubor s makry.
A9: Název | B9: Výdaje bez DPH | C9: Sazba DPH | D9: Výdaje s DPH | E9: Nezpůsobilá část výdajů stanovená žadatelem (bez DPH) | F9: Nezpůsobilá část DPH | G9: Způsobilé výdaje po zohlednění způsobilosti DPH
A10: 1. Investiční výdaje | B10: =SUM(B11,B14:B17,B20:B20,B21:B22,B23) -> 0 | D10: =SUM(D11,D14:D17,D20:D20,D21:D22,D23) -> 0 | E10: =SUM(E11,E14:E17,E20:E20,E21:E22,E23) -> 0 | F10: =SUM(F11,F14:F17,F20:F20,F21:F22,M20,F23) -> 0 | G10: =SUM(G11,G14:G17,G20:G20,G21:G22) -> 0
A11: 1.1 Budovy, stavby | B11: =SUM(B12:B13) -> 0 | D11: =SUM(D12:D13) -> 0 | E11: =SUM(E12:E13) -> 0 | F11: =SUM(F12:F13) -> 0 | G11: =G12+G13 -> 0
A12: 1.1.1 Stavby pořízené formou výstavby a stavební úpravy | B12: 0 | C12: 0.21 | D12: =B12+(B12*C12) -> 0 | E12: 0 | F12: 0 | G12: =IF(data!$G$2=TRUE,(Rozpočet_digitalizace!B12-Rozpočet_digitalizace!E12),(Rozpočet_digitalizace!D12-(Rozpočet_digitalizace!E12+(E12*C12)))-F12) -> 0
A13: 1.1.2 Pořízení nemovitosti (budovy) | B13: 0 | C13: 0.21 | D13: 0 | E13: 0 | F13: 0 | G13: =IF(data!$G$2=TRUE,(Rozpočet_digitalizace!B13-Rozpočet_digitalizace!E13),(Rozpočet_digitalizace!D13-(Rozpočet_digitalizace!E13+(E13*C13)))-F13) -> 0
A14: 1.2. Hmotný movitý majetek | B14: 0 | C14: 0.21 | D14: 0 | E14: 0 | F14: 0 | G14: =IF(data!$G$2=TRUE,(Rozpočet_digitalizace!B14-Rozpočet_digitalizace!E14),(Rozpočet_digitalizace!D14-(Rozpočet_digitalizace!E14+(E14*C14)))-F14) -> 0
A15: 1.3. Materiál | B15: 0 | C15: 0.21 | D15: 0 | E15: 0 | F15: 0 | G15: =IF(data!$G$2=TRUE,(Rozpočet_digitalizace!B15-Rozpočet_digitalizace!E15),(Rozpočet_digitalizace!D15-(Rozpočet_digitalizace!E15+(E15*C15)))-F15) -> 0
A16: 1.4. Nehmotný majetek | B16: 0 | C16: 0.21 | D16: 0 | E16: 0 | F16: 0 | G16: =IF(data!$G$2=TRUE,(Rozpočet_digitalizace!B16-Rozpočet_digitalizace!E16),(Rozpočet_digitalizace!D16-(Rozpočet_digitalizace!E16+(E16*C16)))-F16) -> 0
A17: 1.5. Osobní náklady | B17: 0 | D17: 0 | E17: 0 | F17: 0 | G17: =IF(data!$G$2=TRUE,(Rozpočet_digitalizace!B17-Rozpočet_digitalizace!E17),(Rozpočet_digitalizace!D17-(Rozpočet_digitalizace!E17+(E17*C17)))) -> 0
A18: 1.5.1 Hlavní administrativní tým | B18: 0 | D18: 0 | E18: 0 | F18: 0 | G18: =IF(data!$G$2=TRUE,(Rozpočet_digitalizace!B18-Rozpočet_digitalizace!E18),(Rozpočet_digitalizace!D18-(Rozpočet_digitalizace!E18+(E18*C18)))) -> 0
A19: 1.5.2 Odborný tým | B19: 0 | D19: 0 | E19: 0 | F19: 0 | G19: =IF(data!$G$2=TRUE,(Rozpočet_digitalizace!B19-Rozpočet_digitalizace!E19),(Rozpočet_digitalizace!D19-(Rozpočet_digitalizace!E19+(E19*C19)))) -> 0
A20: 1.6. Služby | B20: 0 | D20: 0 | E20: 0 | F20: 0 | G20: 0
A21: 1.7. Vícepráce | B21: 0 | C21: 0.21 | D21: 0 | E21: 0 | F21: 0 | G21: =IF(data!$G$2=TRUE,(Rozpočet_digitalizace!B21-Rozpočet_digitalizace!E21),(Rozpočet_digitalizace!D21-(Rozpočet_digitalizace!E21+(E21*C21)))-F21) -> 0
A22: 1.8. Vyvolané investice | B22: 0 | C22: 0.21 | D22: 0 | E22: 0 | F22: 0 | G22: =IF(data!$G$2=TRUE,(Rozpočet_digitalizace!B22-Rozpočet_digitalizace!E22),(Rozpočet_digitalizace!D22-(Rozpočet_digitalizace!E22+(E22*C22)))-F22) -> 0
A23: 1.9. Nezpůsobilé investiční výdaje | B23: 0 | C23: 0.21 | D23: 0 | E23: =D23 -> 0 | F23: 0 | G23: 0
A24: 2. Neinvestiční výdaje | B24: =SUM(B25,B28,B29,B30,B31,B34,B35:B36,B37) -> 3683170.221 | D24: =SUM(D25,D28:D31,D34:D34,D35:D36,D37) -> 3683170.221 | E24: =SUM(E25,E28:E31,E34:E34,E35:E36,E37) -> 0 | F24: =SUM(F25,F28:F31,F34:F34,F35:F36,F37) -> 0 | G24: =SUM(G25,G28:G31,G34,G35:G36) -> 3683170.221
A25: 2.1. Budovy, stavby | B25: =SUM(B26:B27) -> 0 | D25: =SUM(D26:D27) -> 0 | E25: =SUM(E26:E27) -> 0 | F25: =SUM(F26:F27) -> 0 | G25: =G26+G27 -> 0
A26: 2.1.1 Stavby pořízené formou výstavby a stavební úpravy | B26: 0 | C26: 0.21 | D26: =B26+(B26*C26) -> 0 | E26: 0 | F26: 0 | G26: =IF(data!$G$2=TRUE,(Rozpočet_digitalizace!B26-Rozpočet_digitalizace!E26),(Rozpočet_digitalizace!D26-(Rozpočet_digitalizace!E26+(E26*C26)))-F26) -> 0
A27: 2.1.2 Pořízení nemovitosti (budovy) | B27: 0 | C27: 0.21 | D27: 0 | E27: 0 | F27: 0 | G27: =IF(data!$G$2=TRUE,(Rozpočet_digitalizace!B27-Rozpočet_digitalizace!E27),(Rozpočet_digitalizace!D27-(Rozpočet_digitalizace!E27+(E27*C27)))-F27) -> 0
A28: 2.2. Hmotný movitý majetek | B28: 0 | C28: 0.21 | D28: 0 | E28: 0 | F28: 0 | G28: =IF(data!$G$2=TRUE,(Rozpočet_digitalizace!B28-Rozpočet_digitalizace!E28),(Rozpočet_digitalizace!D28-(Rozpočet_digitalizace!E28+(E28*C28)))-F28) -> 0
A29: 2.3. Materiál | B29: 0 | C29: 0.21 | D29: 0 | E29: 0 | F29: 0 | G29: =IF(data!$G$2=TRUE,(Rozpočet_digitalizace!B29-Rozpočet_digitalizace!E29),(Rozpočet_digitalizace!D29-(Rozpočet_digitalizace!E29+(E29*C29)))-F29) -> 0
A30: 2.4. Nehmotný majetek | B30: 0 | C30: 0.21 | D30: 0 | E30: 0 | F30: 0 | G30: =IF(data!$G$2=TRUE,(Rozpočet_digitalizace!B30-Rozpočet_digitalizace!E30),(Rozpočet_digitalizace!D30-(Rozpočet_digitalizace!E30+(E30*C30)))-F30) -> 0
A31: 2.5. Osobní náklady | B31: =SUM(B32:B33) -> 3683170.221 | D31: =SUM(D32:D33) -> 3683170.221 | E31: =SUM(E32:E33) -> 0 | F31: =SUM(F32:F33) -> 0 | G31: =G32+G33 -> 3683170.221
A32: 2.5.1 Hlavní administrativní tým | B32: ='7.Osobní náklady'!H10 -> 1044000.221 | D32: 1044000.221 | E32: 0 | F32: 0 | G32: =IF(data!$G$2=TRUE,(Rozpočet_digitalizace!B32-Rozpočet_digitalizace!E32),(Rozpočet_digitalizace!D32-(Rozpočet_digitalizace!E32+(E32*C32)))) -> 1044000.221
A33: 2.5.2 Odborný tým | B33: ='7.Osobní náklady'!H57 -> 2639170 | D33: 2639170 | E33: 0 | F33: 0 | G33: =IF(data!$G$2=TRUE,(Rozpočet_digitalizace!B33-Rozpočet_digitalizace!E33),(Rozpočet_digitalizace!D33-(Rozpočet_digitalizace!E33+(E33*C33)))) -> 2639170
A34: 2.6. Služby | B34: 0 | D34: 0 | E34: 0 | F34: 0 | G34: 0
A35: 2.7. Vícepráce | B35: 0 | C35: 0.21 | D35: 0 | E35: 0 | F35: 0 | G35: =IF(data!$G$2=TRUE,(Rozpočet_digitalizace!B35-Rozpočet_digitalizace!E35),(Rozpočet_digitalizace!D35-(Rozpočet_digitalizace!E35+(E35*C35)))-F35) -> 0
A36: 2.8. Vyvolané investice | B36: 0 | C36: 0.21 | D36: 0 | E36: 0 | F36: 0 | G36: =IF(data!$G$2=TRUE,(Rozpočet_digitalizace!B36-Rozpočet_digitalizace!E36),(Rozpočet_digitalizace!D36-(Rozpočet_digitalizace!E36+(E36*C36)))-F36) -> 0
A37: 2.9. Nezpůsobilé neinvestiční výdaje | B37: 0 | C37: 0.21 | D37: 0 | E37: =D37 -> 0 | F37: 0 | G37: 0
A38: Celkem investiční a neinvestiční výdaje | B38: =SUM(B24,B10) -> 3683170.221 | D38: =SUM(D24,D10) -> 3683170.221 | E38: =SUM(E24,E10) -> 0 | F38: =SUM(F24,F10) -> 0 | G38: =SUM(G10,G24) -> 3683170.221
A39: Paušál (nepřímé výdaje) | B39: 0.07 | G39: =(G38)*B39 -> 257821.9155
A40: Celkem | G40: =SUM(G38:G39) -> 3940992.137
A42: Celkové výdaje projektu | B42: =D38+G39 -> 3940992.137 | D42: Komentář k nezpůsobilým výdajům:
A43: Celkové způsobilé výdaje projektu | B43: =G40 -> 3940992.137
A44: Celkové nezpůsobilé výdaje projektu | B44: =B42-B43 -> 0
A45: Celkové nezpůsobilé výdaje projektu - investiční | B45: =D10-G10 -> 0
A46: Celkové nezpůsobilé výdaje projektu - neinvestiční | B46: =D24-G24 -> 0

Sheet X.vzor
A1: Kumulativní rozpočet projektu
A2: Instrukce: | F2: Editujte pouze zelená pole. Rozepiště položky do úrovně jednotek vyšších než 40 000 Kč. V případě položek, jejichž kumulativní náklad bude nižší, uveďte jako jednotku "celkem". Stejné položky úvadějte do jednoho řádku s vymezením počtu jednotek. Je možné přidávat libovolné množství řádků. Tento list je příkladový a je třeba jej kopírovat pro využití na rozepsání ostatních polože z prvního listu (viz příklad 1. - Pozemky).
A9: Název položky | B9: Popis vazby na aktivitu(y) projektu | C9: Přiřazení subjektu: žadatel, anebo název partnera s finančním příspěvkem | D9: Měrná jednotka (kus, den, apod.) | E9: Počet jednotek | F9: Celková cena bez DPH | G9: Sazba DPH | H9: Celková cena s DPH | I9: Nezpůsobilá část celkových výdajů stanovená žadatelem (bez DPH) | J9: Nezpůsobilá část DPH | K9: Způsobilé výdaje po zohlednění způsobilosti DPH
A10: 1. | F10: =SUM(F11,F25) -> 0 | H10: =SUM(H25,H11) -> 0 | I10: =SUM(I25,I11) -> 0 | J10: =SUM(J25,J11) -> 0 | K10: =SUM(K25,K11) -> 0
A11: 1.1 Investiční výdaje | F11: =SUM(F12:F24) -> 0 | H11: =SUM(H12:H24) -> 0 | I11: =SUM(I12:I24) -> 0 | J11: =SUM(J12:J24) -> 0 | K11: =SUM(K12:K24) -> 0
F12: 0 | G12: 0.21 | H12: =F12+(F12*G12) -> 0 | I12: 0 | J12: 0 | K12: =IF(data!$G$2=TRUE,(X.vzor!F12-X.vzor!I12),(X.vzor!H12-(X.vzor!I12+(I12*G12)))-J12) -> 0
F13: 0 | G13: 0.21 | H13: =F13+(F13*G13) -> 0 | I13: 0 | J13: 0 | K13: =IF(data!$G$2=TRUE,(X.vzor!F13-X.vzor!I13),(X.vzor!H13-(X.vzor!I13+(I13*G13)))-J13) -> 0
F14: 0 | G14: 0.21 | H14: 0 | I14: 0 | J14: 0 | K14: =IF(data!$G$2=TRUE,(X.vzor!F14-X.vzor!I14),(X.vzor!H14-(X.vzor!I14+(I14*G14)))-J14) -> 0
F15: 0 | G15: 0.21 | H15: 0 | I15: 0 | J15: 0 | K15: =IF(data!$G$2=TRUE,(X.vzor!F15-X.vzor!I15),(X.vzor!H15-(X.vzor!I15+(I15*G15)))-J15) -> 0
F16: 0 | G16: 0.21 | H16: 0 | I16: 0 | J16: 0 | K16: =IF(data!$G$2=TRUE,(X.vzor!F16-X.vzor!I16),(X.vzor!H16-(X.vzor!I16+(I16*G16)))-J16) -> 0
F17: 0 | G17: 0.21 | H17: 0 | I17: 0 | J17: 0 | K17: =IF(data!$G$2=TRUE,(X.vzor!F17-X.vzor!I17),(X.vzor!H17-(X.vzor!I17+(I17*G17)))-J17) -> 0
F18: 0 | G18: 0.21 | H18: 0 | I18: 0 | J18: 0 | K18: =IF(data!$G$2=TRUE,(X.vzor!F18-X.vzor!I18),(X.vzor!H18-(X.vzor!I18+(I18*G18)))-J18) -> 0
F19: 0 | G19: 0.21 | H19: 0 | I19: 0 | J19: 0 | K19: =IF(data!$G$2=TRUE,(X.vzor!F19-X.vzor!I19),(X.vzor!H19-(X.vzor!I19+(I19*G19)))-J19) -> 0
F20: 0 | G20: 0.21 | H20: 0 | I20: 0 | J20: 0 | K20: =IF(data!$G$2=TRUE,(X.vzor!F20-X.vzor!I20),(X.vzor!H20-(X.vzor!I20+(I20*G20)))-J20) -> 0
F21: 0 | G21: 0.21 | H21: 0 | I21: 0 | J21: 0 | K21: =IF(data!$G$2=TRUE,(X.vzor!F21-X.vzor!I21),(X.vzor!H21-(X.vzor!I21+(I21*G21)))-J21) -> 0
F22: 0 | G22: 0.21 | H22: 0 | I22: 0 | J22: 0 | K22: =IF(data!$G$2=TRUE,(X.vzor!F22-X.vzor!I22),(X.vzor!H22-(X.vzor!I22+(I22*G22)))-J22) -> 0
F23: 0 | G23: 0.21 | H23: 0 | I23: 0 | J23: 0 | K23: =IF(data!$G$2=TRUE,(X.vzor!F23-X.vzor!I23),(X.vzor!H23-(X.vzor!I23+(I23*G23)))-J23) -> 0
F24: 0 | G24: 0.21 | H24: 0 | I24: 0 | J24: 0 | K24: =IF(data!$G$2=TRUE,(X.vzor!F24-X.vzor!I24),(X.vzor!H24-(X.vzor!I24+(I24*G24)))-J24) -> 0
A25: 1.2 Neinvestiční výdaje | F25: =SUM(F26:F38) -> 0 | H25: =SUM(H26:H38) -> 0 | I25: =SUM(I26:I38) -> 0 | J25: =SUM(J26:J38) -> 0 | K25: =SUM(K26:K38) -> 0
F26: 0 | G26: 0.21 | H26: 0 | I26: 0 | J26: 0 | K26: =IF(data!$G$2=TRUE,(X.vzor!F26-X.vzor!I26),(X.vzor!H26-(X.vzor!I26+(I26*G26)))-J26) -> 0
F27: 0 | G27: 0.21 | H27: 0 | I27: 0 | J27: 0 | K27: =IF(data!$G$2=TRUE,(X.vzor!F27-X.vzor!I27),(X.vzor!H27-(X.vzor!I27+(I27*G27)))-J27) -> 0
F28: 0 | G28: 0.21 | H28: 0 | I28: 0 | J28: 0 | K28: =IF(data!$G$2=TRUE,(X.vzor!F28-X.vzor!I28),(X.vzor!H28-(X.vzor!I28+(I28*G28)))-J28) -> 0
F29: 0 | G29: 0.21 | H29: 0 | I29: 0 | J29: 0 | K29: =IF(data!$G$2=TRUE,(X.vzor!F29-X.vzor!I29),(X.vzor!H29-(X.vzor!I29+(I29*G29)))-J29) -> 0
F30: 0 | G30: 0.21 | H30: 0 | I30: 0 | J30: 0 | K30: =IF(data!$G$2=TRUE,(X.vzor!F30-X.vzor!I30),(X.vzor!H30-(X.vzor!I30+(I30*G30)))-J30) -> 0
F31: 0 | G31: 0.21 | H31: 0 | I31: 0 | J31: 0 | K31: =IF(data!$G$2=TRUE,(X.vzor!F31-X.vzor!I31),(X.vzor!H31-(X.vzor!I31+(I31*G31)))-J31) -> 0
F32: 0 | G32: 0.21 | H32: 0 | I32: 0 | J32: 0 | K32: =IF(data!$G$2=TRUE,(X.vzor!F32-X.vzor!I32),(X.vzor!H32-(X.vzor!I32+(I32*G32)))-J32) -> 0
F33: 0 | G33: 0.21 | H33: 0 | I33: 0 | J33: 0 | K33: =IF(data!$G$2=TRUE,(X.vzor!F33-X.vzor!I33),(X.vzor!H33-(X.vzor!I33+(I33*G33)))-J33) -> 0
F34: 0 | G34: 0.21 | H34: 0 | I34: 0 | J34: 0 | K34: =IF(data!$G$2=TRUE,(X.vzor!F34-X.vzor!I34),(X.vzor!H34-(X.vzor!I34+(I34*G34)))-J34) -> 0
F35: 0 | G35: 0.21 | H35: 0 | I35: 0 | J35: 0 | K35: =IF(data!$G$2=TRUE,(X.vzor!F35-X.vzor!I35),(X.vzor!H35-(X.vzor!I35+(I35*G35)))-J35) -> 0
F36: 0 | G36: 0.21 | H36: 0 | I36: 0 | J36: 0 | K36: =IF(data!$G$2=TRUE,(X.vzor!F36-X.vzor!I36),(X.vzor!H36-(X.vzor!I36+(I36*G36)))-J36) -> 0
F37: 0 | G37: 0.21 | H37: 0 | I37: 0 | J37: 0 | K37: =IF(data!$G$2=TRUE,(X.vzor!F37-X.vzor!I37),(X.vzor!H37-(X.vzor!I37+(I37*G37)))-J37) -> 0
F38: 0 | G38: 0.21 | H38: 0 | I38: 0 | J38: 0 | K38: =IF(data!$G$2=TRUE,(X.vzor!F38-X.vzor!I38),(X.vzor!H38-(X.vzor!I38+(I38*G38)))-J38) -> 0
A39: Celkem | F39: =SUM(F25+F11) -> 0 | H39: =SUM(H25+H11) -> 0 | I39: =SUM(I25+I11) -> 0 | J39: =SUM(J25+J11) -> 0 | K39: =SUM(K25+K11) -> 0
H41: Komentář k nezpůsobilým výdajům:

Sheet 7.Osobní náklady
A1: instrukce | B1: Editujte pouze zelená pole. Tabulku vyplňujte v souladu s přílohou 2. Mzdy a platy Pravidel pro žadatele. Můžete přidávat řádky. Po přídání řádků zkontrolujte funkčnost výpočtů. Příklad kurzívou.
B4: Realizační tým
B5: Název pozice | C5: Mzdová sazba odpovídající úvazku ve výši 1,0 FTE/ hodinová sazba u DPP/DPČ | D5: Průměrný úvazek (FTE) za kalendářní měsíc projektu / počet hodin za období realizace projektu v případě DPP/DPČ | E5: Výše osobních nákladů za jeden kalendářní měsíc (hrubá mzda / plat) / Výše osobních nákladů za sledované období v případě DPP/DPČ | F5: Výše osobních nákladů včetně odvodů na straně zaměstnavatele | G5: Počet měsíců za vykazované období | H5: Celkem | I5: Způsob stanovení nákladů na zaměstnance | J5: Kód ISPV | K5: Mzda/plat/odměna | L5: Charakteristika pracovího místa / náplň práce | M5: Způsob doložení stanovení kódu | N5: Období zapojení osoby do projektu | P5: Poznámka k výpočtu | Q5: Zapojený subjekt (příjemce/ konkrétní partner) | R5: Popis vazby na aktivitu(y) projektu (sle SP)
N6: Od (max 1.1.2021) | O6: Do (max 31.12.2027)
A7: Hlavní administrativní tým - jednorázová částka | B7: Projektový manažer | D7: 0.5 | F7: =data!F12 -> 76454.53994 | H7: =F7*$G$10*D7 -> 458727.2396
B8: Finanční manažer | D8: 0.5 | F8: =data!F13 -> 70468.28859 | H8: =F8*$G$10*D8 -> 422809.7315
B9: Administrativní pracovník | D9: 0.3 | F9: =data!F17 -> 45128.68053 | H9: 162463.2499
B10: 2.7.1 Celkem | G10: 12 | H10: =SUM(H7:H9) -> 1044000.221
B11: Pracovní smlovy | E11: =SUM(E12:E33) -> 280000 | F11: =SUM(F12:F33) -> 374640 | H11: =SUM(H12:H33) -> 2568960
A12: Odborný tým | B12: lektor A | C12: 100000 | D12: 0.8 | E12: =C12*D12 -> 80000 | F12: =E12*1.338 -> 107040 | G12: 4 | H12: =F12*G12 -> 428160 | I12: Jednotkový náklad | J12: 1111
B13: exceletní vědec B | C13: 100000 | D13: 1 | E13: 100000 | F13: =E13*1.338 -> 133800 | G13: 4 | H13: =F13*G13 -> 535200 | K13: mzda | M13: Dle charakteristiky PM odpovídá nejlépe tento kód | N13: 2021-01-01 | O13: 2021-12-31 | Q13: Partner A | R13: Aktivita 1
B14: lektor C | C14: 100000 | D14: 1 | E14: 100000 | F14: 133800 | G14: 12 | H14: =F14*G14 -> 1605600
C15: 0 | E15: 0 | F15: 0 | H15: 0
C16: 0 | E16: 0 | F16: 0 | H16: 0
C17: 0 | E17: 0 | F17: 0 | H17: 0
C18: 0 | E18: 0 | F18: 0 | H18: 0
C19: 0 | E19: 0 | F19: 0 | H19: 0
C20: 0 | E20: 0 | F20: 0 | H20: 0
C21: 0 | E21: 0 | F21: 0 | H21: 0
C22: 0 | E22: 0 | F22: 0 | H22: 0
C23: 0 | E23: 0 | F23: 0 | H23: 0
C24: 0 | E24: 0 | F24: 0 | H24: 0
C25: 0 | E25: 0 | F25: 0 | H25: 0
C26: 0 | E26: 0 | F26: 0 | H26: 0
C27: 0 | E27: 0 | F27: 0 | H27: 0
C28: 0 | E28: 0 | F28: 0 | H28: 0
C29: 0 | E29: 0 | F29: 0 | H29: 0
C30: 0 | E30: 0 | F30: 0 | H30: 0
C31: 0 | E31: 0 | F31: 0 | H31: 0
C32: 0 | E32: 0 | F32: 0 | H32: 0
C33: 0 | E33: 0 | F33: 0 | H33: 0
B34: Dohody o pracovní činnosti | E34: =SUM(E35:E46) -> 30000 | F34: =SUM(F46:F374) -> 40140 | H34: =SUM(H35:H46) -> 40140
B35: Osoba 1 | C35: 500 | D35: 60 | E35: =C35*D35 -> 30000 | F35: =E35*1.338 -> 40140 | H35: =F35 -> 40140 | I35: Hodinová sazba - výpočet | J35: 1111
C36: 0 | E36: 0 | F36: 0 | H36: =F36 -> 0 | K36: odměna
C37: 0 | E37: 0 | F37: 0 | H37: 0
C38: 0 | E38: 0 | F38: 0 | H38: 0
C39: 0 | E39: 0 | F39: 0 | H39: 0
C40: 0 | E40: 0 | F40: 0 | H40: 0
C41: 0 | E41: 0 | F41: 0 | H41: 0
C42: 0 | E42: 0 | F42: 0 | H42: =F42 -> 0
C43: 0 | E43: 0 | F43: 0 | H43: 0
C44: 0 | E44: 0 | F44: 0 | H44: 0
C45: 0 | E45: 0 | F45: 0 | H45: 0
C46: 0 | E46: 0 | F46: 0 | H46: 0
B47: Dohody o provedení práce (do výše 10 tis.Kč/měs) | E47: =SUM(E48:E52) -> 10000 | F47: =SUM(F48:F52) -> 0 | H47: =SUM(H48:H52) -> 10000
B48: Osoba 1 | C48: 500 | D48: 20 | E48: =C48*D48 -> 10000 | F48: 0 | H48: =E48 -> 10000 | I48: Hodinová sazba - výpočet
C49: 0 | E49: 0 | F49: 0 | H49: =E49 -> 0
C50: 0 | E50: 0 | F50: 0 | H50: =E50 -> 0
C51: 0 | E51: 0 | F51: 0 | H51: =E51 -> 0
C52: 0 | E52: 0 | F52: 0 | H52: =E52 -> 0
B53: Dohody o provedení práce (nad 10 tis.Kč/měs) | E53: =SUM(E54:E56) -> 15000 | F53: =SUM(F54:F56) -> 20070 | H53: =SUM(H54:H56) -> 20070
B54: Osoba 1 | C54: 1500 | D54: 10 | E54: 15000 | F54: =_xlfn.IFS(E54>=10001,E54*1.338,E54<=10000,E54) -> 20070 | H54: =F54 -> 20070
C55: 0 | E55: 0 | F55: =_xlfn.IFS(E55>=10001,E55*1.338,E55<=10000,E55) -> 0 | H55: 0
C56: 0 | E56: 0 | F56: =_xlfn.IFS(E56>=10001,E56*1.338,E56<=10000,E56) -> 0 | H56: 0
B57: 2.7.2. Celkem | H57: =SUM(H47,H34,H11,H53) -> 2639170
H59: =H10+H57 -> 3683170.221
A60: Celkem

Sheet data (hidden)
A1: Priorita | B1: Specifický cíl | C1: pozice | D1: Admin_mzda/1FTE/1měsíc | E1: Typ pracovně právního vztahu | F1: Způsob stanovení nákladů na zaměstnance | G1: DPH | H1: Forma odměny | I1: Paušál
A2: 1. Karlovarský kraj | B2: 1.1 | C2: Hlavní projektový manažer | D2: 142438 | E2: Pracovní smlouva | G2: FALSE | H2: mzda | I2: 0.03
A3: 2. Ústecký kraj | B3: 2.1 | C3: Projektový manažer | D3: 76455 | E3: DPČ | F3: Hodinová sazba - výpočet | H3: plat | I3: 0.05
A4: 3. Moravskoslezský kraj | B4: 3.1 | C4: Finanční manažer | D4: 70468 | E4: DPP | F4: Jednotkový náklad ISPV | H4: odměna | I4: 0.07
C5: Administrativní pracovník | D5: 45129
A8: Vážený průměr
A9: počet projektů plat | B9: 13 | C9: Plat v Kč | D9: Mzda v Kč | E9: Sazba hrubé mzdy dle ISPV (za plný úvazek) v Kč | F9: Výše osobních nákladů, tj. hrubá mzda + odvody za zaměstnavatele (za plný úvazek) v Kč
A10: počet projektů mzdy | B10: 21
A11: Hlavní projektový manažer/ vedoucí projektu | B11: 2422 | C11: 70687 | D11: 128598 | E11: =((C11*$B$9)+(D11*$B$10))/34 -> 106455.5588 | F11: =E11*1.338 -> 142437.5377
A12: Projektový manažer/ týmový manažer | B12: 2422 | C12: 47673 | D12: 63002 | E12: =((C12*$B$9)+(D12*$B$10))/34 -> 57140.91176 | F12: =E12*1.338 -> 76454.53994
A13: Finanční manažer | B13: 2411 | C13: 42052 | D13: 59238 | E13: =((C13*$B$9)+(D13*$B$10))/34 -> 52666.88235 | F13: =E13*1.338 -> 70468.28859
A14: Administrativní pracovník | B14: 4110 | C14: 33435 | D14: 27325 | E14: =((C14*$B$9)+(D14*$B$10))/34 -> 29661.17647
B15: 3343 | C15: 36488 | D15: 39354 | E15: 38258.17647
B16: 4120 | C16: 33489 | D16: 33128 | E16: 33266.02941
D17: průměr za (4110, 3343, 4120) | E17: =AVERAGE(E14:E16) -> 33728.46078 | F17: 45128.68053

Sheet List2 (hidden)
A1: Volba | B1: nezvoleno | C1: PO 2
A2: nezvoleno | B2: nezvoleno | C2: 2.2 a) Lokální spalovací stacionární zdroje
C3: 2.2 a) Ostatní spalovací stacionární zdroje
A4: PO_2 | C4: 2.2 b) Ostatní stacionární zdroje
C5: 2.2 c) Stacionární zdroje těkavých organických látek
C6: 2.2 d) Dodatečné technologie a změny technolog. postupů u spalovacích zdrojů
C7: 2.2 e) Dodatečné technologie a změny technolog. postupů u stacionárních zdrojů
C8: 2.2 f) Dodatečné technologie a změny technolog. postupů u stacionárních zdrojů těkavých organických látek
C9: 2.2 g) Technologie ke snižování emisí NH3
C10: 2.2 h) Omezování prašnosti z plošných zdrojů
C11: 2.2 i) Soustavy centralizovaného zásobování tepelnou energií
C12: 2.3 Projekty zaměřené na monitoring
A22: Volba | B22: TRUE | C22: FALSE
A23: TRUE | B23: Kotel na pevná paliva | C23: není
A24: FALSE | B24: Kondenzační kotel na zemní plyn
B25: Elektrické tepelné čerpadlo vzduch/voda
B26: Elektrické tepelné čerpadlo země/voda
B27: Elektrické tepelné čerpadlo voda/voda
B28: Plynové tepelné čerpadlo vzduch/voda
B29: Plynové tepelné čerpadlo země/voda
B30: Plynové tepelné čerpadlo voda/voda
B31: Plochý kolektor
B32: Trubicový vakuový kolektor
D35: 9400
D36: 8300
A37: 2 | D37: 30000
A38: 8300 | D38: 45900
A39: FALSE | D39: 45900
A40: TRUE | D40: 20600
A41: FALSE | D41: 34300
D42: 34300 | E42: 2
D43: 26500 | E43: =E42 -> 2
D44: 48400 | E44: 2000
D45: 170000
H47: KDYŽ(B2="ano";C6*0,22;KDYŽ(B2="ne";C6*0,05;"chyba"))
A48: Kotel na biomasu/tuhá paliva/plyn
A49: Plynové / Elektrické TČ
